fUST/lending_fUST_20250607
["ID","MTS","AMOUNT","RATE_DAILY","PERIOD"]
[364780405,1749240633583,-440.0,0.00019178,2]
[364780406,1749240633593,-440.0,0.00019178,2]
[364780407,1749240633603,-440.0,0.00019178,2]
[364780408,1749240633612,-440.0,0.00019178,2]
[364780409,1749240633622,-440.0,0.00019178,2]
[364780410,1749240633751,-440.0,0.00019178,2]
[364780411,1749240633762,-440.0,0.00019178,2]
[364780412,1749240633772,-440.0,0.00019178,2]
[364780413,1749240633781,-440.0,0.00019178,2]
[364780414,1749240633790,-440.0,0.00019178,2]
[364780415,1749240633800,-440.0,0.00019178,2]
[364780416,1749240633809,-440.0,0.00019178,2]
[364780417,1749240633819,-400.82147598,0.00019178,2]
[364780418,1749240633828,-440.0,0.00019178,2]
[364780419,1749240633838,-440.0,0.00019178,2]
[364780420,1749240633847,-440.0,0.00019178,2]
[364780421,1749240633856,-506.1688868,0.00019178,2]
[364780422,1749240633866,-440.0,0.00019178,2]
[364780423,1749240633876,-784.07,0.00019178,2]
[364780424,1749240633885,-500.0,0.00019178,2]
[364780425,1749240633895,-440.0,0.00019178,2]
[364780426,1749240633905,-440.0,0.00019178,2]
[364780427,1749240633914,-440.0,0.00019178,2]
[364780428,1749240633924,-440.0,0.00019178,2]
[364780429,1749240633933,-370.0,0.00019178,2]
[364780430,1749240633943,-440.0,0.00019178,2]
[364780431,1749240633952,-440.0,0.00019178,2]
[364780432,1749240633964,-2274.67,0.00019178,2]
[364780433,1749240633973,-440.0,0.00019178,2]
[364780434,1749240633983,-440.0,0.00019178,2]
[364780435,1749240633993,-440.0,0.00019178,2]
[364780436,1749240634002,-440.0,0.00019178,2]
[364780437,1749240634013,-440.0,0.00019178,2]
[364780438,1749240634023,-420.0,0.00019178,2]
[364780439,1749240634032,-440.0,0.00019178,2]
[364780440,1749240634042,-440.0,0.00019178,2]
[364780441,1749240634051,-1117.74,0.00019178,2]
[364780442,1749240634061,-440.0,0.00019178,2]
[364780443,1749240634071,-440.0,0.00019178,2]
[364780444,1749240634080,-440.0,0.00019178,2]
[364780445,1749240634091,-410.0,0.00019178,2]
[364780446,1749240634100,-2157.36,0.00019178,2]
[364780447,1749240634110,-1320.35,0.00019178,2]
[364780448,1749240634120,-420.0,0.00019178,2]
[364780449,1749240634130,-440.0,0.00019178,2]
[364780450,1749240634139,-1236.34,0.00019178,2]
[364780451,1749240634149,-440.0,0.00019178,2]
[364780452,1749240634158,-440.0,0.00019178,2]
[364780453,1749240634167,-1278.26,0.00019178,2]
[364780454,1749240634177,-440.0,0.00019178,2]
[364780455,1749240634186,-440.0,0.00019178,2]
[364780456,1749240634195,-440.0,0.00019178,2]
[364780457,1749240634205,-440.0,0.00019178,2]
[364780458,1749240634215,-500.0,0.00019178,2]
[364780459,1749240634225,-199.027992,0.00019178,2]
[364780460,1749240634234,-426.27,0.00019442,3]
[364780461,1749240634243,-213.14,0.00019442,3]
[364780462,1749240634253,-500.0,0.0001945,2]
[364780463,1749240634262,-500.0,0.00019451,2]
[364780464,1749240634271,-500.0,0.00019451,2]
[364780465,1749240634281,-465.9860981,0.00019451,2]
[364780466,1749240634290,-160.0,0.00019451,2]
[364780467,1749240634300,-440.0,0.00019452,2]
[364780468,1749240634310,-440.0,0.00019452,2]
[364780469,1749240634320,-440.0,0.00019452,2]
[364780470,1749240634334,-346.08095417,0.00019452,2]
[364780471,1749240634344,-430.0,0.00019452,2]
[364780472,1749240634353,-440.0,0.00019452,2]
[364780473,1749240634363,-440.0,0.00019452,2]
[364780474,1749240634373,-440.0,0.00019452,2]
[364780475,1749240634383,-440.0,0.00019452,2]
[364780476,1749240634393,-440.0,0.00019452,2]
[364780477,1749240634403,-440.0,0.00019452,2]
[364780478,1749240634415,-154.79258161,0.00019452,2]
[364780479,1749240634425,-420.0,0.00019452,2]
[364780480,1749240634435,-408.54429707,0.00019452,2]
[364780481,1749240634444,-440.0,0.00019452,2]
[364780482,1749240634454,-440.0,0.00019452,2]
[364780483,1749240634465,-440.0,0.00019452,2]
[364780484,1749240634474,-440.0,0.00019452,2]
[364780485,1749240634484,-698.12,0.00019452,2]
[364780486,1749240634494,-440.0,0.00019452,2]
[364780487,1749240634504,-440.0,0.00019452,2]
[364780488,1749240634513,-174.13313598,0.00019452,2]
[364780489,1749240634522,-604.04,0.00019452,2]
[364780490,1749240634532,-560.01,0.00019452,2]
[364780491,1749240634541,-440.0,0.00019452,2]
[364780492,1749240634551,-440.0,0.00019452,2]
[364780493,1749240634560,-440.0,0.00019452,2]
[364780494,1749240634569,-420.0,0.00019452,2]
[364780495,1749240634578,-440.0,0.00019452,2]
[364780496,1749240634588,-440.0,0.00019452,2]
[364780497,1749240634598,-440.0,0.00019452,2]
[364780498,1749240634608,-406.28705695,0.00019452,2]
[364780499,1749240634618,-440.0,0.00019452,2]
[364780500,1749240634627,-440.0,0.00019452,2]
[364780501,1749240634637,-440.0,0.00019452,2]
[364780502,1749240634646,-560.87,0.00019452,2]
[364780503,1749240634656,-440.0,0.00019452,2]
[364780504,1749240634665,-440.0,0.00019452,2]
[364780505,1749240634675,-440.0,0.00019452,2]
[364780506,1749240634685,-527.85,0.00019452,2]
[364780507,1749240634694,-350.0,0.00019452,2]
[364780508,1749240634703,-516.7,0.00019452,2]
[364780509,1749240634715,-440.0,0.00019452,2]
[364780510,1749240634724,-440.0,0.00019452,2]
[364780511,1749240634734,-440.0,0.00019452,2]
[364780512,1749240634743,-440.0,0.00019452,2]
[364780513,1749240634752,-399.340788,0.00019452,2]
[364780514,1749240634762,-440.0,0.00019452,2]
[364780515,1749240634772,-440.0,0.00019452,2]
[364780516,1749240634781,-440.0,0.00019452,2]
[364780517,1749240634790,-420.0,0.00019452,2]
[364780518,1749240634800,-440.0,0.00019452,2]
[364780519,1749240634809,-440.0,0.00019452,2]
[364780520,1749240634818,-445.81,0.00019452,2]
[364780521,1749240634827,-440.0,0.00019452,2]
[364780522,1749240634837,-440.0,0.00019452,2]
[364780523,1749240634846,-440.0,0.00019452,2]
[364780524,1749240634856,-440.0,0.00019452,2]
[364780525,1749240634865,-440.0,0.00019452,2]
[364780526,1749240634874,-941.53,0.00019452,2]
[364780527,1749240634884,-440.0,0.00019452,2]
[364780528,1749240634893,-1886.05,0.00019452,2]
[364780529,1749240634902,-440.0,0.00019452,2]
[364780530,1749240634912,-440.0,0.00019452,2]
[364780531,1749240634921,-350.0,0.00019452,2]
[364780532,1749240634930,-440.0,0.00019452,2]
[364780533,1749240634939,-440.0,0.00019452,2]
[364780534,1749240634949,-654.4,0.00019452,2]
[364780535,1749240634961,-440.0,0.00019452,2]
[364780536,1749240634970,-925.19,0.00019452,2]
[364780537,1749240634979,-440.0,0.00019452,2]
[364780538,1749240634988,-727.62,0.00019452,2]
[364780539,1749240634998,-440.0,0.00019452,2]
[364780540,1749240635008,-475.52381841,0.00019452,2]
[364780541,1749240635018,-440.0,0.00019452,2]
[364780542,1749240635027,-400.0,0.00019452,2]
[364780543,1749240635036,-440.0,0.00019452,2]
[364780544,1749240635047,-462.23,0.00019452,2]
[364780545,1749240635057,-440.0,0.00019452,2]
[364780546,1749240635067,-440.0,0.00019452,2]
[364780547,1749240635076,-2822.37,0.00019452,2]
[364780548,1749240635086,-440.0,0.00019452,2]
[364780549,1749240635097,-440.0,0.00019452,2]
[364780550,1749240635106,-440.0,0.00019452,2]
[364780551,1749240635116,-440.0,0.00019452,2]
[364780552,1749240635126,-440.0,0.00019452,2]
[364780553,1749240635136,-440.0,0.00019452,2]
[364780554,1749240635145,-440.0,0.00019452,2]
[364780555,1749240635154,-1200.29,0.00019452,2]
[364780556,1749240635163,-183.22731964,0.00019452,2]
[364780557,1749240635173,-440.0,0.00019452,2]
[364780558,1749240635182,-440.0,0.00019452,2]
[364780559,1749240635191,-2670.16,0.00019452,2]
[364780560,1749240635200,-717.71,0.00019452,2]
[364780561,1749240635210,-440.0,0.00019452,2]
[364780562,1749240635219,-440.0,0.00019452,2]
[364780563,1749240635228,-182.65955834,0.00019452,2]
[364780564,1749240635237,-410.0,0.00019452,2]
[364780565,1749240635246,-440.0,0.00019452,2]
[364780566,1749240635255,-400.0,0.00019452,2]
[364780567,1749240635264,-916.0,0.00019452,2]
[364780568,1749240635273,-440.0,0.00019452,2]
[364780569,1749240635283,-849.72,0.00019452,2]
[364780570,1749240635292,-440.0,0.00019452,2]
[364780571,1749240635301,-440.0,0.00019452,2]
[364780572,1749240635310,-440.0,0.00019452,2]
[364780573,1749240635320,-440.0,0.00019452,2]
[364780574,1749240635331,-420.0,0.00019452,2]
[364780575,1749240635341,-440.0,0.00019452,2]
[364780576,1749240635350,-440.0,0.00019452,2]
[364780577,1749240635359,-440.0,0.00019452,2]
[364780578,1749240635368,-440.0,0.00019452,2]
[364780579,1749240635378,-250.0,0.00019452,2]
[364780580,1749240635387,-440.0,0.00019452,2]
[364780581,1749240635396,-440.0,0.00019452,2]
[364780582,1749240635407,-441.3213603,0.00019452,2]
[364780583,1749240635417,-784.07,0.00019452,2]
[364780584,1749240635426,-440.0,0.00019452,2]
[364780585,1749240635435,-440.0,0.00019452,2]
[364780586,1749240635444,-440.0,0.00019452,2]
[364780587,1749240635454,-440.0,0.00019452,2]
[364780588,1749240635464,-440.0,0.00019452,2]
[364780589,1749240635474,-2274.67,0.00019452,2]
[364780590,1749240635484,-440.0,0.00019452,2]
[364780591,1749240635497,-440.0,0.00019452,2]
[364780592,1749240635506,-440.0,0.00019452,2]
[364780593,1749240635515,-440.0,0.00019452,2]
[364780594,1749240635525,-245.38559004,0.00019452,2]
[364780595,1749240635536,-440.0,0.00019452,2]
[364780596,1749240635546,-1117.74,0.00019452,2]
[364780597,1749240635557,-440.0,0.00019452,2]
[364780598,1749240635567,-440.0,0.00019452,2]
[364780599,1749240635577,-440.0,0.00019452,2]
[364780600,1749240635587,-2157.36,0.00019452,2]
[364780601,1749240635596,-1320.35,0.00019452,2]
[364780602,1749240635605,-440.0,0.00019452,2]
[364780603,1749240635614,-1236.34,0.00019452,2]
[364780604,1749240635624,-440.0,0.00019452,2]
[364780605,1749240635634,-440.0,0.00019452,2]
[364780606,1749240635644,-1278.26,0.00019452,2]
[364780607,1749240635654,-314.41680277,0.00019452,2]
[364780608,1749240635663,-440.0,0.00019452,2]
[364780609,1749240635672,-2533.938236,0.00019546,2]
[364780610,1749240635682,-500.0,0.00019665,2]
[364780611,1749240635691,-1500.0,0.00019666,2]
[364780612,1749240635701,-151.0,0.00019726,2]
[364780613,1749240635711,-290.48538673,0.00019726,2]
[364780614,1749240635720,-440.0,0.00019726,2]
[364780615,1749240635730,-440.0,0.00019726,2]
[364780616,1749240635740,-440.0,0.00019726,2]
[364780617,1749240635749,-440.0,0.00019726,2]
[364780618,1749240635759,-440.0,0.00019726,2]
[364780619,1749240635768,-440.0,0.00019726,2]
[364780620,1749240635778,-440.0,0.00019726,2]
[364780621,1749240635788,-380.0,0.00019726,2]
[364780622,1749240635798,-440.0,0.00019726,2]
[364780623,1749240635807,-698.12,0.00019726,2]
[364780624,1749240635816,-440.0,0.00019726,2]
[364780625,1749240635826,-191.83135684,0.00019726,2]
[364780626,1749240635835,-604.04,0.00019726,2]
[364780627,1749240635845,-560.01,0.00019726,2]
[364780628,1749240635855,-440.0,0.00019726,2]
[364780629,1749240635864,-440.0,0.00019726,2]
[364780630,1749240635873,-416.91681944,0.00019726,2]
[364780631,1749240635882,-440.0,0.00019726,2]
[364780632,1749240635892,-440.0,0.00019726,2]
[364780633,1749240635902,-420.0,0.00019726,2]
[364780634,1749240635911,-440.0,0.00019726,2]
[364780635,1749240635922,-440.0,0.00019726,2]
[364780636,1749240635931,-560.87,0.00019726,2]
[364780637,1749240635942,-370.80122827,0.00019726,2]
[364780638,1749240635953,-440.0,0.00019726,2]
[364780639,1749240635966,-440.0,0.00019726,2]
[364780640,1749240635977,-516.7,0.00019726,2]
[364780641,1749240635990,-440.0,0.00019726,2]
[364780642,1749240636000,-440.0,0.00019726,2]
[364780643,1749240636010,-440.0,0.00019726,2]
[364780644,1749240636020,-217.62072255,0.00019726,2]
[364780645,1749240636029,-440.0,0.00019726,2]
[364780646,1749240636039,-440.0,0.00019726,2]
[364780647,1749240636048,-445.81,0.00019726,2]
[364780648,1749240636058,-440.0,0.00019726,2]
[364780649,1749240636068,-440.0,0.00019726,2]
[364780650,1749240636077,-440.0,0.00019726,2]
[364780651,1749240636087,-440.0,0.00019726,2]
[364780652,1749240636097,-440.0,0.00019726,2]
[364780653,1749240636107,-941.53,0.00019726,2]
[364780654,1749240636207,-380.0,0.00019726,2]
[364780655,1749240636218,-1886.05,0.00019726,2]
[364780656,1749240636227,-420.0,0.00019726,2]
[364780657,1749240636237,-390.0,0.00019726,2]
[364780658,1749240636247,-370.0,0.00019726,2]
[364780659,1749240636256,-440.0,0.00019726,2]
[364780660,1749240636266,-654.4,0.00019726,2]
[364780661,1749240636275,-925.19,0.00019726,2]
[364780662,1749240636285,-440.0,0.00019726,2]
[364780663,1749240636295,-727.62,0.00019726,2]
[364780664,1749240636305,-400.0,0.00019726,2]
[364780665,1749240636315,-440.0,0.00019726,2]
[364780666,1749240636324,-440.0,0.00019726,2]
[364780667,1749240636338,-462.23,0.00019726,2]
[364780668,1749240636348,-440.0,0.00019726,2]
[364780669,1749240636358,-440.0,0.00019726,2]
[364780670,1749240636368,-2822.37,0.00019726,2]
[364780671,1749240636378,-440.0,0.00019726,2]
[364780672,1749240636388,-440.0,0.00019726,2]
[364780673,1749240636397,-440.0,0.00019726,2]
[364780674,1749240636407,-420.0,0.00019726,2]
[364780675,1749240636416,-440.0,0.00019726,2]
[364780676,1749240636426,-440.0,0.00019726,2]
[364780677,1749240636436,-440.0,0.00019726,2]
[364780678,1749240636445,-1200.29,0.00019726,2]
[364780679,1749240636455,-440.0,0.00019726,2]
[364780680,1749240636468,-440.0,0.00019726,2]
[364780681,1749240636477,-2670.16,0.00019726,2]
[364780682,1749240636487,-717.71,0.00019726,2]
[364780683,1749240636498,-440.0,0.00019726,2]
[364780684,1749240636507,-440.0,0.00019726,2]
[364780685,1749240636517,-916.0,0.00019726,2]
[364780686,1749240636526,-440.0,0.00019726,2]
[364780687,1749240636536,-849.72,0.00019726,2]
[364780688,1749240636545,-400.0,0.00019726,2]
[364780689,1749240636555,-440.0,0.00019726,2]
[364780690,1749240636565,-440.0,0.00019726,2]
[364780691,1749240636575,-440.0,0.00019726,2]
[364780692,1749240636586,-440.0,0.00019726,2]
[364780693,1749240636595,-440.0,0.00019726,2]
[364780694,1749240636606,-440.0,0.00019726,2]
[364780695,1749240636615,-560.80421666,0.00019726,2]
[364780696,1749240636625,-440.0,0.00019726,2]
[364780697,1749240636634,-440.0,0.00019726,2]
[364780698,1749240636644,-784.07,0.00019726,2]
[364780699,1749240636654,-430.0,0.00019726,2]
[364780700,1749240636663,-440.0,0.00019726,2]
[364780701,1749240636673,-440.0,0.00019726,2]
[364780702,1749240636682,-440.0,0.00019726,2]
[364780703,1749240636692,-440.0,0.00019726,2]
[364780704,1749240636701,-2274.67,0.00019726,2]
[364780705,1749240636711,-440.0,0.00019726,2]
[364780706,1749240636720,-440.0,0.00019726,2]
[364780707,1749240636730,-440.0,0.00019726,2]
[364780708,1749240636740,-440.0,0.00019726,2]
[364780709,1749240636749,-440.0,0.00019726,2]
[364780710,1749240636760,-1117.74,0.00019726,2]
[364780711,1749240636771,-440.0,0.00019726,2]
[364780712,1749240636988,-440.0,0.00019726,2]
[364780713,1749240636998,-440.0,0.00019726,2]
[364780714,1749240637008,-2157.36,0.00019726,2]
[364780715,1749240637018,-1320.35,0.00019726,2]
[364780716,1749240637027,-430.0,0.00019726,2]
[364780717,1749240637037,-1236.34,0.00019726,2]
[364780718,1749240637046,-440.0,0.00019726,2]
[364780719,1749240637056,-440.0,0.00019726,2]
[364780720,1749240637065,-1278.26,0.00019726,2]
[364780721,1749240637075,-440.0,0.00019726,2]
[364780722,1749240637085,-500.0,0.00019837,2]
[364780723,1749240637094,-500.67063591,0.00019837,2]
[364780724,1749240637103,-500.0,0.00019837,2]
[364780725,1749240637113,-150.0,0.00019838,2]
[364780726,1749240637122,-500.0,0.00019908,2]
[364780727,1749240637132,-500.0,0.00019921,2]
[364780728,1749240637142,-500.0,0.00019921,2]
[364780729,1749240637152,-505.67096782,0.00019921,2]
[364780730,1749240637161,-512.8240996,0.00019921,2]
[364780731,1749240637171,-501.07931688,0.00019921,2]
[364780732,1749240637181,-500.0,0.00019921,2]
[364780733,1749240637191,-500.8726261,0.00019921,2]
[364780734,1749240637201,-500.0,0.00019921,2]
[364780735,1749240637210,-500.0,0.00019921,2]
[364780736,1749240637221,-500.0,0.0001994,2]
[364780737,1749240637230,-500.0,0.0001994,2]
[364780738,1749240637239,-500.89279523,0.00019974,2]
[364780739,1749240637249,-500.0,0.00019974,2]
[364780740,1749240637259,-194.76318022,0.00019974,2]
[364780741,1749240637268,-500.0,0.00019976,2]
[364780742,1749240637278,-500.0,0.00019976,2]
[364780743,1749240637287,-500.0,0.00019976,2]
[364780744,1749240637297,-501.76613094,0.00019986,2]
[364780745,1749240637307,-500.0,0.00019986,2]
[364780746,1749240637316,-501.53825745,0.00019986,2]
[364780747,1749240637325,-505.40322186,0.00019986,2]
[364780748,1749240637339,-645.84577878,0.00019986,2]
[364780749,1749240637349,-500.0,0.00019986,2]
[364780750,1749240637358,-156.2966205,0.00019986,2]
[364780751,1749240637368,-500.24466392,0.00019986,2]
[364780752,1749240637378,-747.67567817,0.00019994,2]
[364780753,1749240637388,-151.0,0.0002,2]
[364780754,1749240637397,-440.0,0.0002,2]
[364780755,1749240637407,-440.0,0.0002,2]
[364780756,1749240637417,-440.0,0.0002,2]
[364780757,1749240637427,-440.0,0.0002,2]
[364780759,1749240637436,-400.7707812,0.0002,2]
[364780760,1749240637446,-440.0,0.0002,2]
[364780761,1749240637455,-440.0,0.0002,2]
[364780762,1749240637465,-420.0,0.0002,2]
[364780763,1749240637474,-698.12,0.0002,2]
[364780764,1749240637491,-440.0,0.0002,2]
[364780765,1749240637501,-604.04,0.0002,2]
[364780767,1749240637510,-560.01,0.0002,2]
[364780769,1749240637519,-440.0,0.0002,2]
[364780771,1749240637528,-440.0,0.0002,2]
[364780772,1749240637538,-440.0,0.0002,2]
[364780774,1749240637548,-440.0,0.0002,2]
[364780775,1749240637557,-440.0,0.0002,2]
[364780777,1749240637566,-440.0,0.0002,2]
[364780779,1749240637575,-560.87,0.0002,2]
[364780781,1749240637585,-410.0,0.0002,2]
[364780783,1749240637594,-440.0,0.0002,2]
[364780784,1749240637603,-516.7,0.0002,2]
[364780785,1749240637612,-440.0,0.0002,2]
[364780787,1749240637621,-202.19686169,0.0002,2]
[364780788,1749240637644,-187.80313831,0.0002,2]
[364780789,1749240637653,-440.0,0.0002,2]
[364780790,1749240637663,-440.0,0.0002,2]
[364780791,1749240637673,-440.0,0.0002,2]
[364780792,1749240637683,-445.81,0.0002,2]
[364780793,1749240637692,-390.0,0.0002,2]
[364780794,1749240637701,-440.0,0.0002,2]
[364780795,1749240637712,-440.0,0.0002,2]
[364780796,1749240637721,-319.32699589,0.0002,2]
[364780797,1749240637731,-440.0,0.0002,2]
[364780798,1749240637741,-941.53,0.0002,2]
[364780799,1749240637750,-1886.05,0.0002,2]
[364780800,1749240637759,-440.0,0.0002,2]
[364780801,1749240637769,-654.4,0.0002,2]
[364780803,1749240637778,-925.19,0.0002,2]
[364780804,1749240637787,-440.0,0.0002,2]
[364780805,1749240637797,-727.62,0.0002,2]
[364780806,1749240637806,-440.0,0.0002,2]
[364780807,1749240637815,-440.0,0.0002,2]
[364780808,1749240637825,-462.23,0.0002,2]
[364780809,1749240637834,-440.0,0.0002,2]
[364780810,1749240637844,-440.0,0.0002,2]
[364780811,1749240637853,-2822.37,0.0002,2]
[364780812,1749240637862,-440.0,0.0002,2]
[364780813,1749240637872,-440.0,0.0002,2]
[364780814,1749240637881,-440.0,0.0002,2]
[364780815,1749240637891,-440.0,0.0002,2]
[364780816,1749240637900,-440.0,0.0002,2]
[364780817,1749240637909,-440.0,0.0002,2]
[364780818,1749240637918,-1200.29,0.0002,2]
[364780819,1749240637927,-45.78592084,0.0002,2]
[364780820,1749240637940,-394.21407916,0.0002,2]
[364780821,1749240637949,-440.0,0.0002,2]
[364780822,1749240637959,-2670.16,0.0002,2]
[364780823,1749240637971,-717.71,0.0002,2]
[364780824,1749240637981,-440.0,0.0002,2]
[364780825,1749240637991,-440.0,0.0002,2]
[364780826,1749240638001,-916.0,0.0002,2]
[364780827,1749240638010,-440.0,0.0002,2]
[364780828,1749240638020,-849.72,0.0002,2]
[364780829,1749240638030,-440.0,0.0002,2]
[364780830,1749240638040,-440.0,0.0002,2]
[364780831,1749240638049,-440.0,0.0002,2]
[364780832,1749240638060,-440.0,0.0002,2]
[364780833,1749240638069,-440.0,0.0002,2]
[364780834,1749240638079,-440.0,0.0002,2]
[364780835,1749240638088,-440.0,0.0002,2]
[364780836,1749240638098,-784.07,0.0002,2]
[364780837,1749240638107,-440.0,0.0002,2]
[364780838,1749240638116,-440.0,0.0002,2]
[364780839,1749240638126,-440.0,0.0002,2]
[364780840,1749240638135,-440.0,0.0002,2]
[364780841,1749240638145,-2274.67,0.0002,2]
[364780842,1749240638155,-440.0,0.0002,2]
[364780843,1749240638164,-440.0,0.0002,2]
[364780844,1749240638173,-577.65,0.0002,2]
[364780845,1749240638183,-440.0,0.0002,2]
[364780846,1749240638192,-333.98268741,0.0002,2]
[364780847,1749240638208,-106.01731259,0.0002,2]
[364780848,1749240638219,-348.7749214,0.0002,2]
[364780849,1749240638230,-433.8591904,0.0002,2]
[364780850,1749240638633,-468.69186921,0.00019725,2]
[364780851,1749240638642,-335.1058882,0.0002,2]
[364780852,1749240638652,-440.0,0.0002,2]
[364780853,1749240638661,-440.0,0.0002,2]
[364780854,1749240638671,-440.0,0.0002,2]
[364780855,1749240638680,-1070.95483456,0.0002,2]
[364780856,1749240638692,-1013.5534752,0.0002,2]
[364780857,1749240638703,-72.85169024,0.0002,2]
[364780858,1749240638714,-965.63117079,0.0002,2]
[364780859,1749240638726,-354.71882921,0.0002,2]
[364780860,1749240638735,-1236.34,0.0002,2]
[364780861,1749240638744,-140.41117079,0.0002,2]
[364780862,1749240638756,-299.58882921,0.0002,2]
[364780863,1749240638765,-1278.26,0.0002,2]
[364780864,1749240638775,-440.0,0.0002,2]
[364780865,1749240638784,-482.97860569,0.00020003,2]
[364780866,1749240638795,-24.74382481,0.00020003,2]
[364780867,1749240638804,-500.0,0.00020019,2]
[364780868,1749240638813,-265.21500939,0.00020019,2]
[364780869,1749240638823,-500.0,0.00020019,2]
[364780870,1749240638832,-1437.54592828,0.000201,2]
[364780871,1749240638841,-1437.5459281,0.000201,2]
[364780872,1749240638851,-368.957,0.0002013,2]
[364780873,1749240638860,-173.124,0.0002013,2]
[364780874,1749240638870,-405.272432,0.00020187,2]
[364780875,1749240638879,-645.37555082,0.00020196,2]
[364780876,1749240638889,-794.93929219,0.00020245,2]
[364780877,1749240638902,-642.60663591,0.00020245,2]
[364780878,1749240638912,-714.54797889,0.00020273,2]
[364780879,1749240638921,-440.0,0.00020273,2]
[364780880,1749240638930,-440.0,0.00020273,2]
[364780881,1749240638940,-425.51378918,0.00020273,2]
[364780882,1749240638949,-440.0,0.00020273,2]
[364780883,1749240638958,-440.0,0.00020273,2]
[364780884,1749240638970,-440.0,0.00020273,2]
[364780885,1749240638979,-698.12,0.00020273,2]
[364780886,1749240638989,-420.0,0.00020273,2]
[364780887,1749240638998,-604.04,0.00020273,2]
[364780888,1749240639008,-453.21556804,0.00020273,2]
[364780889,1749240639019,-106.79443196,0.00020273,2]
[364780890,1749240639029,-271.45913133,0.00020273,2]
[364780891,1749240639038,-440.0,0.00020273,2]
[364780892,1749240639047,-360.0,0.00020273,2]
[364780893,1749240639057,-440.0,0.00020273,2]
[364780894,1749240639066,-440.0,0.00020273,2]
[364780895,1749240639076,-440.0,0.00020273,2]
[364780896,1749240639085,-560.87,0.00020273,2]
[364780897,1749240639094,-440.0,0.00020273,2]
[364780898,1749240639104,-516.7,0.00020273,2]
[364780899,1749240639113,-440.0,0.00020273,2]
[364780900,1749240639123,-440.0,0.00020273,2]
[364780901,1749240639132,-440.0,0.00020273,2]
[364780902,1749240639142,-440.0,0.00020273,2]
[364780903,1749240639151,-445.81,0.00020273,2]
[364780904,1749240639161,-440.0,0.00020273,2]
[364780905,1749240639171,-440.0,0.00020273,2]
[364780906,1749240639180,-304.31553763,0.00020273,2]
[364780907,1749240639189,-1886.05,0.00020273,2]
[364780908,1749240639199,-440.0,0.00020273,2]
[364780909,1749240639208,-654.4,0.00020273,2]
[364780910,1749240639219,-925.19,0.00020273,2]
[364780911,1749240639229,-440.0,0.00020273,2]
[364780912,1749240639238,-727.62,0.00020273,2]
[364780913,1749240639248,-469.70908746,0.00020273,2]
[364780914,1749240639257,-462.23,0.00020273,2]
[364780915,1749240639267,-440.0,0.00020273,2]